[Event "Live Chess"]
[Site "Chess.com"]
[Date "2023.05.21"]
[Round "-"]
[White "CheckThis4"]
[Black "chessfiction"]
[Result "1/2-1/2"]
[WhiteElo "2508"]
[BlackElo "2358"]
[TimeControl "300"]
[EndTime "19:40:34 PDT"]
[Termination "Game drawn - timeout vs insufficient material"]

1. d4 {[%clk 0:04:56.2]} 1... c6 {[%clk 0:04:58.7]} 2. c4 {[%clk 0:04:54.4]}
2... d5 {[%clk 0:04:58.6]} 3. Nc3 {[%clk 0:04:53.6]} 3... Nf6 {[%clk 0:04:57.8]}
4. Nf3 {[%clk 0:04:53]} 4... dxc4 {[%clk 0:04:56.7]} 5. a4 {[%clk 0:04:51.4]}
5... Bf5 {[%clk 0:04:46.8]} 6. e3 {[%clk 0:04:50]} 6... e6 {[%clk 0:04:46.1]} 7.
Bxc4 {[%clk 0:04:48.6]} 7... Bb4 {[%clk 0:04:45]} 8. O-O {[%clk 0:04:47.3]} 8...
O-O {[%clk 0:04:43.9]} 9. Bd3 {[%clk 0:04:45.1]} 9... Bxd3 {[%clk 0:04:41]} 10.
Qxd3 {[%clk 0:04:45]} 10... c5 {[%clk 0:04:39.6]} 11. Qc4 {[%clk 0:04:30.5]}
11... Nbd7 {[%clk 0:04:26.1]} 12. Na2 {[%clk 0:04:22]} 12... a5 {[%clk
0:04:18.7]} 13. Nxb4 {[%clk 0:04:11.2]} 13... cxb4 {[%clk 0:04:16.2]} 14. b3
{[%clk 0:04:03.8]} 14... Rc8 {[%clk 0:04:08.2]} 15. Qb5 {[%clk 0:04:02]} 15...
Nd5 {[%clk 0:03:59.3]} 16. Qxb7 {[%clk 0:03:48.2]} 16... Nc3 {[%clk 0:03:53.7]}
17. Bb2 {[%clk 0:03:31.9]} 17... Nf6 {[%clk 0:03:45]} 18. Bxc3 {[%clk
0:03:23.4]} 18... Rxc3 {[%clk 0:03:41.5]} 19. Rab1 {[%clk 0:03:20]} 19... Qd5
{[%clk 0:03:33.7]} 20. Qxd5 {[%clk 0:03:10.5]} 20... exd5 {[%clk 0:03:32.7]} 21.
h3 {[%clk 0:02:58.2]} 21... Ne4 {[%clk 0:03:26.9]} 22. Rfd1 {[%clk 0:02:47.8]}
22... Rc2 {[%clk 0:03:22.9]} 23. Rf1 {[%clk 0:02:14.9]} 23... Rfc8 {[%clk
0:03:20.3]} 24. g4 {[%clk 0:02:05.3]} 24... f6 {[%clk 0:03:10.2]} 25. Kg2 {[%clk
0:02:02.1]} 25... Re2 {[%clk 0:03:06.2]} 26. Rbe1 {[%clk 0:01:55.9]} 26... Rcc2
{[%clk 0:03:02.2]} 27. Rxe2 {[%clk 0:01:52.6]} 27... Rxe2 {[%clk 0:03:02.1]} 28.
Nh4 {[%clk 0:01:39.4]} 28... g6 {[%clk 0:02:51.7]} 29. Kg1 {[%clk 0:01:10.5]}
29... Rb2 {[%clk 0:02:48.3]} 30. f3 {[%clk 0:01:06.5]} 30... Nc3 {[%clk
0:02:35.8]} 31. e4 {[%clk 0:01:05.1]} 31... Ne2+ {[%clk 0:02:29.9]} 32. Kf2
{[%clk 0:01:03.8]} 32... Nxd4+ {[%clk 0:02:26.8]} 33. Ke3 {[%clk 0:01:02.2]}
33... Nc2+ {[%clk 0:01:53.3]} 34. Kd3 {[%clk 0:01:00.5]} 34... dxe4+ {[%clk
0:01:51]} 35. fxe4 {[%clk 0:00:59.3]} 35... Kg7 {[%clk 0:01:44.5]} 36. Nf3
{[%clk 0:00:52.9]} 36... Na3 {[%clk 0:01:39.1]} 37. Nd2 {[%clk 0:00:47.1]} 37...
h6 {[%clk 0:01:25.1]} 38. Rc1 {[%clk 0:00:42.9]} 38... h5 {[%clk 0:01:23.6]} 39.
gxh5 {[%clk 0:00:41]} 39... gxh5 {[%clk 0:01:22.5]} 40. h4 {[%clk 0:00:39]}
40... Kf7 {[%clk 0:01:18.9]} 41. Rc5 {[%clk 0:00:37.2]} 41... Nb1 {[%clk
0:01:15]} 42. Nxb1 {[%clk 0:00:35]} 42... Rxb1 {[%clk 0:01:14.5]} 43. Rxa5
{[%clk 0:00:32.2]} 43... Rxb3+ {[%clk 0:01:13.2]} 44. Kc4 {[%clk 0:00:31.3]}
44... Re3 {[%clk 0:01:12.3]} 45. Rxh5 {[%clk 0:00:29.4]} 45... Rxe4+ {[%clk
0:01:11.2]} 46. Kb3 {[%clk 0:00:28.1]} 46... Kg6 {[%clk 0:01:08.4]} 47. Rb5
{[%clk 0:00:25.6]} 47... Rxh4 {[%clk 0:01:06.1]} 48. Rxb4 {[%clk 0:00:22.9]}
48... Rh3+ {[%clk 0:01:05.6]} 49. Kc4 {[%clk 0:00:21.7]} 49... Rh5 {[%clk
0:01:03.9]} 50. Rb5 {[%clk 0:00:18.8]} 50... Rh4+ {[%clk 0:01:03.3]} 51. Kb3
{[%clk 0:00:17.9]} 51... Rh3+ {[%clk 0:01:02.4]} 52. Kb4 {[%clk 0:00:17.1]}
52... Rh1 {[%clk 0:01:01.5]} 53. a5 {[%clk 0:00:16.1]} 53... Rb1+ {[%clk
0:01:00.9]} 54. Kc5 {[%clk 0:00:15.1]} 54... Ra1 {[%clk 0:00:59.5]} 55. Kb6
{[%clk 0:00:14]} 55... f5 {[%clk 0:00:58.6]} 56. a6 {[%clk 0:00:13.9]} 56... Kg5
{[%clk 0:00:57.6]} 57. Ra5 {[%clk 0:00:13.1]} 57... Rb1+ {[%clk 0:00:56.6]} 58.
Kc7 {[%clk 0:00:12.6]} 58... Rc1+ {[%clk 0:00:55.9]} 59. Kd6 {[%clk 0:00:11.8]}
59... Rd1+ {[%clk 0:00:53.5]} 60. Ke6 {[%clk 0:00:11.1]} 60... Re1+ {[%clk
0:00:52.5]} 61. Kf7 {[%clk 0:00:10.2]} 61... Rc1 {[%clk 0:00:49.9]} 62. a7
{[%clk 0:00:09.4]} 62... Rc7+ {[%clk 0:00:49]} 63. Ke6 {[%clk 0:00:08.7]} 63...
Rc6+ {[%clk 0:00:46.3]} 64. Kd5 {[%clk 0:00:07.7]} 64... Rc8 {[%clk 0:00:42.9]}
65. a8=Q {[%clk 0:00:07.6]} 65... Rxa8 {[%clk 0:00:42.1]} 66. Rxa8 {[%clk
0:00:07.5]} 66... Kg4 {[%clk 0:00:41.3]} 67. Rg8+ {[%clk 0:00:07]} 67... Kf3
{[%clk 0:00:40.4]} 68. Ke5 {[%clk 0:00:06.9]} 68... f4 {[%clk 0:00:40.1]} 69.
Rf8 {[%clk 0:00:06.4]} 69... Ke3 {[%clk 0:00:39.5]} 70. Rxf4 {[%clk 0:00:06.3]}
70... Kd3 {[%clk 0:00:39.4]} 71. Rf3+ {[%clk 0:00:05.5]} 71... Ke2 {[%clk
0:00:38.8]} 72. Ke4 {[%clk 0:00:05.1]} 72... Kd2 {[%clk 0:00:38.2]} 73. Rf2+
{[%clk 0:00:04.6]} 73... Kc3 {[%clk 0:00:37.8]} 74. Re2 {[%clk 0:00:03.2]} 74...
Kc4 {[%clk 0:00:37.7]} 75. Rc2+ {[%clk 0:00:02.8]} 75... Kb3 {[%clk 0:00:37.1]}
76. Kd3 {[%clk 0:00:02.7]} 76... Kb4 {[%clk 0:00:36.7]} 77. Rc3 {[%clk 0:00:02]}
77... Kb5 {[%clk 0:00:36.2]} 78. Kd4 {[%clk 0:00:01.9]} 78... Kb4 {[%clk
0:00:36.1]} 79. Rc4+ {[%clk 0:00:01.7]} 79... Kb5 {[%clk 0:00:35.9]} 80. Kd5
{[%clk 0:00:01.6]} 80... Kb6 {[%clk 0:00:35.3]} 81. Kd6 {[%clk 0:00:01.4]} 81...
Kb5 {[%clk 0:00:35.2]} 82. Rd4 {[%clk 0:00:00.8]} 82... Kb6 {[%clk 0:00:34.1]}
83. Rb4+ {[%clk 0:00:00.4]} 83... Ka5 {[%clk 0:00:34]} 84. Kc5 {[%clk
0:00:00.1]} 84... Ka6 {[%clk 0:00:33.2]} 1/2-1/2

[Event "Live Chess"]
[Site "Chess.com"]
[Date "2023.05.21"]
[Round "-"]
[White "GEMdzq"]
[Black "LutherSullivan"]
[Result "0-1"]
[WhiteElo "2280"]
[BlackElo "2151"]
[TimeControl "300"]
[EndTime "19:41:09 PDT"]
[Termination "LutherSullivan won by resignation"]

1. e4 {[%clk 0:04:58.6]} 1... e5 {[%clk 0:04:58.9]} 2. Nf3 {[%clk 0:04:55.5]}
2... Nc6 {[%clk 0:04:58.1]} 3. Bb5 {[%clk 0:04:55]} 3... a6 {[%clk 0:04:56.2]}
4. Ba4 {[%clk 0:04:54.2]} 4... Nf6 {[%clk 0:04:55.8]} 5. O-O {[%clk 0:04:53.1]}
5... Be7 {[%clk 0:04:54.3]} 6. Re1 {[%clk 0:04:51.7]} 6... b5 {[%clk 0:04:53.3]}
7. Bb3 {[%clk 0:04:51.3]} 7... O-O {[%clk 0:04:52.2]} 8. a4 {[%clk 0:04:47.1]}
8... b4 {[%clk 0:04:49.8]} 9. d3 {[%clk 0:04:38.6]} 9... d6 {[%clk 0:04:46.9]}
10. Nbd2 {[%clk 0:04:35.5]} 10... h6 {[%clk 0:04:38.2]} 11. Nf1 {[%clk
0:04:33.4]} 11... Re8 {[%clk 0:04:36.4]} 12. a5 {[%clk 0:04:25.7]} 12... Bf8
{[%clk 0:04:33.1]} 13. Ne3 {[%clk 0:04:21.7]} 13... Ne7 {[%clk 0:04:30.8]} 14.
d4 {[%clk 0:04:09]} 14... Ng6 {[%clk 0:04:27.5]} 15. Nd5 {[%clk 0:03:58.9]}
15... exd4 {[%clk 0:04:02]} 16. Nxd4 {[%clk 0:03:48.8]} 16... c5 {[%clk
0:03:56.9]} 17. Nc6 {[%clk 0:03:23.5]} 17... Qd7 {[%clk 0:03:51.1]} 18. Nxf6+
{[%clk 0:03:19.8]} 18... gxf6 {[%clk 0:03:50.7]} 19. Qh5 {[%clk 0:03:15.2]}
19... Qg4 {[%clk 0:03:35.8]} 20. Qxg4 {[%clk 0:02:22.7]} 20... Bxg4 {[%clk
0:03:22.4]} 21. c3 {[%clk 0:02:21.3]} 21... Bd7 {[%clk 0:03:14.6]} 22. Ba4
{[%clk 0:02:17.9]} 22... Rac8 {[%clk 0:03:04.7]} 23. Na7 {[%clk 0:01:30.4]}
23... Rc7 {[%clk 0:02:41.3]} 24. cxb4 {[%clk 0:01:29.3]} 24... Bxa4 {[%clk
0:02:34.6]} 25. Rxa4 {[%clk 0:01:26.6]} 25... Rxa7 {[%clk 0:02:29.4]} 26. bxc5
{[%clk 0:01:25.9]} 26... dxc5 {[%clk 0:02:27.7]} 27. Be3 {[%clk 0:01:25.4]}
27... Rb7 {[%clk 0:02:24.2]} 28. Re2 {[%clk 0:01:21.1]} 28... Rb4 {[%clk
0:02:19.4]} 29. Rxb4 {[%clk 0:01:19.8]} 29... cxb4 {[%clk 0:02:18.3]} 30. f3
{[%clk 0:01:19.1]} 30... Ne5 {[%clk 0:02:13.3]} 31. Rc2 {[%clk 0:01:15.9]} 31...
Rd8 {[%clk 0:02:04.7]} 32. Kf2 {[%clk 0:01:11.3]} 32... b3 {[%clk 0:01:58]} 33.
Rc3 {[%clk 0:01:03.4]} 33... Rd3 {[%clk 0:01:55.3]} 34. Rc8 {[%clk 0:00:59.2]}
34... Kg7 {[%clk 0:01:46.4]} 35. h3 {[%clk 0:00:55.8]} 35... Rd1 {[%clk
0:01:36.8]} 36. f4 {[%clk 0:00:53]} 36... Nd3+ {[%clk 0:01:28.4]} 37. Ke2 {[%clk
0:00:51.6]} 37... Nxb2 {[%clk 0:01:27.3]} 38. Bc1 {[%clk 0:00:48.9]} 38... Rg1
{[%clk 0:01:22.1]} 39. Kf2 {[%clk 0:00:45]} 39... Rxc1 {[%clk 0:01:13.4]} 40.
Rxc1 {[%clk 0:00:41.4]} 40... Nd3+ {[%clk 0:01:12.9]} 41. Ke3 {[%clk 0:00:40.3]}
41... Nxc1 {[%clk 0:01:11.9]} 42. Kd2 {[%clk 0:00:39.7]} 42... Ba3 {[%clk
0:01:06.7]} 43. Kc3 {[%clk 0:00:37.1]} 43... Kf8 {[%clk 0:00:58.5]} 44. g4
{[%clk 0:00:33.8]} 44... b2 {[%clk 0:00:56.5]} 45. Kc2 {[%clk 0:00:31.9]} 45...
Nb3 {[%clk 0:00:56]} 46. h4 {[%clk 0:00:26.9]} 46... Nd2 {[%clk 0:00:55.5]} 0-1

[Event "Live Chess"]
[Site "Chess.com"]
[Date "2023.05.21"]
[Round "-"]
[White "therealab0ne"]
[Black "OceanFloater"]
[Result "0-1"]
[WhiteElo "717"]
[BlackElo "1017"]
[TimeControl "300"]
[EndTime "19:41:58 PDT"]
[Termination "OceanFloater won by resignation"]

1. e4 {[%clk 0:04:59.1]} 1... c6 {[%clk 0:04:59.1]} 2. d4 {[%clk 0:04:57.5]}
2... d5 {[%clk 0:04:58.5]} 3. f3 {[%clk 0:04:57.1]} 3... Nf6 {[%clk 0:04:54.6]}
4. e5 {[%clk 0:04:53.8]} 4... Nh5 {[%clk 0:04:52.8]} 5. Nc3 {[%clk 0:04:45.2]}
5... Bf5 {[%clk 0:04:50.5]} 6. f4 {[%clk 0:04:43.2]} 6... e6 {[%clk 0:04:42.8]}
7. Qxh5 {[%clk 0:04:38.8]} 7... g6 {[%clk 0:04:40.2]} 8. Qg5 {[%clk 0:04:34.6]}
8... Be7 {[%clk 0:04:37.2]} 9. Qg3 {[%clk 0:04:25.1]} 9... Bh4 {[%clk
0:04:33.7]} 10. Qxh4 {[%clk 0:04:16.5]} 10... Qxh4+ {[%clk 0:04:31.8]} 11. g3
{[%clk 0:04:11.4]} 11... Qe7 {[%clk 0:04:27.2]} 12. Nf3 {[%clk 0:04:05.3]} 12...
c5 {[%clk 0:04:17.9]} 13. Bb5+ {[%clk 0:03:57.5]} 13... Nc6 {[%clk 0:04:16]} 14.
Be3 {[%clk 0:03:47.3]} 14... a6 {[%clk 0:04:13.2]} 15. Ba4 {[%clk 0:03:44.8]}
15... b5 {[%clk 0:04:10.7]} 16. Nxb5 {[%clk 0:03:41.7]} 16... axb5 {[%clk
0:04:09.4]} 17. Bxb5 {[%clk 0:03:41.1]} 17... cxd4 {[%clk 0:03:53.3]} 18. Nxd4
{[%clk 0:03:37.9]} 18... Qb4+ {[%clk 0:03:43.3]} 19. c3 {[%clk 0:03:33.3]} 19...
Qxb2 {[%clk 0:03:41.2]} 20. Bxc6+ {[%clk 0:03:28.2]} 20... Ke7 {[%clk
0:03:38.8]} 21. O-O {[%clk 0:03:20]} 21... Qxc3 {[%clk 0:03:34.4]} 22. Bxa8
{[%clk 0:03:16.4]} 22... Qxe3+ {[%clk 0:03:32.9]} 23. Kh1 {[%clk 0:03:05]} 23...
Be4+ {[%clk 0:03:31.2]} 24. Nf3 {[%clk 0:02:59.9]} 24... Rxa8 {[%clk 0:03:25.5]}
25. Rae1 {[%clk 0:02:55]} 25... Bxf3+ {[%clk 0:03:23.7]} 26. Rxf3 {[%clk
0:02:53.6]} 26... Qxf3+ {[%clk 0:03:22.5]} 27. Kg1 {[%clk 0:02:52.8]} 27... Rxa2
{[%clk 0:03:19.9]} 0-1

[Event "Live Chess"]
[Site "Chess.com"]
[Date "2023.05.21"]
[Round "-"]
[White "manthanit"]
[Black "Long1968"]
[Result "0-1"]
[WhiteElo "1060"]
[BlackElo "1075"]
[TimeControl "300"]
[EndTime "19:41:59 PDT"]
[Termination "Long1968 won by checkmate"]

1. e4 {[%clk 0:04:59]} 1... e6 {[%clk 0:04:57.6]} 2. d4 {[%clk 0:04:57.8]} 2...
d5 {[%clk 0:04:56]} 3. exd5 {[%clk 0:04:55.6]} 3... exd5 {[%clk 0:04:49.9]} 4.
Nc3 {[%clk 0:04:54.3]} 4... Nf6 {[%clk 0:04:45]} 5. a3 {[%clk 0:04:50.6]} 5...
Be7 {[%clk 0:04:40.3]} 6. Nf3 {[%clk 0:04:49]} 6... Bg4 {[%clk 0:04:36.1]} 7.
Be2 {[%clk 0:04:46.8]} 7... O-O {[%clk 0:04:32.8]} 8. h3 {[%clk 0:04:45.9]} 8...
Bh5 {[%clk 0:04:30.1]} 9. O-O {[%clk 0:04:44.9]} 9... c6 {[%clk 0:04:25.8]} 10.
Ne5 {[%clk 0:04:43.1]} 10... Bxe2 {[%clk 0:04:17.6]} 11. Qxe2 {[%clk 0:04:42]}
11... Nbd7 {[%clk 0:04:12.8]} 12. Nxd7 {[%clk 0:04:38.9]} 12... Qxd7 {[%clk
0:04:09.1]} 13. Qd2 {[%clk 0:04:35.4]} 13... Rfe8 {[%clk 0:03:59.3]} 14. Nd1
{[%clk 0:04:30.9]} 14... Ne4 {[%clk 0:03:54.2]} 15. Qd3 {[%clk 0:04:20.7]} 15...
c5 {[%clk 0:03:37.4]} 16. f3 {[%clk 0:04:18.6]} 16... Ng3 {[%clk 0:03:20]} 17.
Re1 {[%clk 0:04:06.1]} 17... cxd4 {[%clk 0:03:06.3]} 18. Qxd4 {[%clk 0:04:01.9]}
18... Bf6 {[%clk 0:02:28.5]} 19. Rxe8+ {[%clk 0:03:55.6]} 19... Qxe8 {[%clk
0:02:12.2]} 20. Qd3 {[%clk 0:03:37.4]} 20... Qe1+ {[%clk 0:02:00.8]} 21. Kh2
{[%clk 0:03:33.6]} 21... Nf1+ {[%clk 0:01:42.1]} 22. Kg1 {[%clk 0:03:24.5]}
22... Ne3+ {[%clk 0:01:19]} 23. Kh2 {[%clk 0:03:11.3]} 23... Be5+ {[%clk
0:01:05.8]} 24. g3 {[%clk 0:02:30.1]} 24... Bxg3# {[%clk 0:00:48.8]} 0-1

[Event "Live Chess"]
[Site "Chess.com"]
[Date "2023.05.21"]
[Round "-"]
[White "Biranidun"]
[Black "Pablo_dmp"]
[Result "1-0"]
[WhiteElo "2518"]
[BlackElo "1861"]
[TimeControl "300"]
[EndTime "19:42:34 PDT"]
[Termination "Biranidun won by resignation"]

1. e4 {[%clk 0:04:59.2]} 1... c5 {[%clk 0:04:56.5]} 2. Nf3 {[%clk 0:04:58.2]}
2... Nc6 {[%clk 0:04:55.1]} 3. d4 {[%clk 0:04:57.3]} 3... cxd4 {[%clk 0:04:54]}
4. Nxd4 {[%clk 0:04:57.2]} 4... Nf6 {[%clk 0:04:53]} 5. Nc3 {[%clk 0:04:56.3]}
5... e5 {[%clk 0:04:51.7]} 6. Ndb5 {[%clk 0:04:55.5]} 6... d6 {[%clk 0:04:50.7]}
7. Bg5 {[%clk 0:04:55.2]} 7... a6 {[%clk 0:04:49.4]} 8. Na3 {[%clk 0:04:54.4]}
8... Be7 {[%clk 0:04:46.8]} 9. Nc4 {[%clk 0:04:52.8]} 9... Be6 {[%clk
0:04:38.2]} 10. Bxf6 {[%clk 0:04:51.6]} 10... gxf6 {[%clk 0:04:38.1]} 11. Ne3
{[%clk 0:04:50.6]} 11... Rb8 {[%clk 0:04:27]} 12. Bd3 {[%clk 0:04:49.3]} 12...
b5 {[%clk 0:04:24.8]} 13. O-O {[%clk 0:04:48.1]} 13... Rg8 {[%clk 0:04:16.9]}
14. Ncd5 {[%clk 0:04:44.6]} 14... Qd7 {[%clk 0:04:03.3]} 15. a4 {[%clk
0:04:42.8]} 15... Bg4 {[%clk 0:03:29]} 16. Nxg4 {[%clk 0:04:39.5]} 16... Qxg4
{[%clk 0:03:19.5]} 17. Qxg4 {[%clk 0:04:38.5]} 17... Rxg4 {[%clk 0:03:19.2]} 18.
axb5 {[%clk 0:04:38.4]} 18... axb5 {[%clk 0:03:17.4]} 19. Bxb5 {[%clk
0:04:38.3]} 19... Kd7 {[%clk 0:03:12.9]} 20. Bxc6+ {[%clk 0:04:36.9]} 20... Kxc6
{[%clk 0:03:07.9]} 21. Nxe7+ {[%clk 0:04:36.5]} 21... Kc5 {[%clk 0:03:05.3]} 22.
f3 {[%clk 0:04:35.1]} 1-0

[Event "Live Chess"]
[Site "Chess.com"]
[Date "2023.05.21"]
[Round "-"]
[White "Conradical12"]
[Black "worldchessleaguelive"]
[Result "0-1"]
[WhiteElo "1627"]
[BlackElo "1378"]
[TimeControl "300"]
[EndTime "19:43:22 PDT"]
[Termination "worldchessleaguelive won - game abandoned"]

1. e4 {[%clk 0:04:57.2]} 1... d5 {[%clk 0:04:58]} 2. exd5 {[%clk 0:04:55.6]}
2... Qxd5 {[%clk 0:04:57.2]} 3. Nc3 {[%clk 0:04:55.2]} 3... Qd8 {[%clk
0:04:56.2]} 4. Nf3 {[%clk 0:04:53.2]} 4... Nf6 {[%clk 0:04:55.2]} 5. Bc4 {[%clk
0:04:52.6]} 5... e6 {[%clk 0:04:53.9]} 6. O-O {[%clk 0:04:51.7]} 6... Be7 {[%clk
0:04:53.1]} 7. d3 {[%clk 0:04:51.1]} 7... O-O {[%clk 0:04:52.3]} 8. Be3 {[%clk
0:04:50.6]} 8... c6 {[%clk 0:04:51.2]} 9. Qd2 {[%clk 0:04:49.9]} 9... b5 {[%clk
0:04:50.3]} 10. Bb3 {[%clk 0:04:49]} 10... a5 {[%clk 0:04:49.5]} 11. a4 {[%clk
0:04:47.1]} 11... b4 {[%clk 0:04:48.7]} 12. Ne2 {[%clk 0:04:45.6]} 12... Bb7
{[%clk 0:04:46.6]} 13. Ng3 {[%clk 0:04:44.6]} 13... c5 {[%clk 0:04:45.4]} 14. d4
{[%clk 0:04:41]} 14... Bxf3 {[%clk 0:04:42.5]} 15. gxf3 {[%clk 0:04:39.5]} 15...
cxd4 {[%clk 0:04:36.8]} 16. Bxd4 {[%clk 0:04:34.5]} 16... Nc6 {[%clk 0:04:35.6]}
17. Be3 {[%clk 0:04:32.6]} 17... Qxd2 {[%clk 0:04:32.9]} 18. Bxd2 {[%clk
0:04:31.1]} 18... Rfd8 {[%clk 0:04:32]} 19. Be3 {[%clk 0:04:29.5]} 19... Nd4
{[%clk 0:04:30.5]} 20. Bxd4 {[%clk 0:04:28.1]} 20... Rxd4 {[%clk 0:04:28.7]} 21.
Kh1 {[%clk 0:04:21.9]} 21... Rad8 {[%clk 0:04:20.1]} 22. Rae1 {[%clk 0:03:59.1]}
22... Rd2 {[%clk 0:04:13.9]} 23. Nf5 {[%clk 0:03:47.4]} 23... Bc5 {[%clk
0:04:11.9]} 24. Ne3 {[%clk 0:03:35.7]} 24... Bxe3 {[%clk 0:04:04.9]} 25. Rxe3
{[%clk 0:03:30.7]} 25... Nd5 {[%clk 0:04:03.4]} 26. Bxd5 {[%clk 0:03:08.2]}
26... R8xd5 {[%clk 0:03:58.3]} 27. Rc1 {[%clk 0:02:55.4]} 27... Rxf2 {[%clk
0:03:54.2]} 28. c4 {[%clk 0:02:52]} 28... Rdd2 {[%clk 0:03:50.1]} 29. c5 {[%clk
0:02:45]} 29... Rxh2+ {[%clk 0:03:47.6]} 30. Kg1 {[%clk 0:02:44]} 30... Rc2
{[%clk 0:03:29.1]} 31. Rd3 {[%clk 0:02:38]} 31... h5 {[%clk 0:03:21.4]} 32. Rd8+
{[%clk 0:02:29.7]} 32... Kh7 {[%clk 0:03:19.1]} 33. Rxc2 {[%clk 0:02:28.1]}
33... Rxc2 {[%clk 0:03:17.1]} 34. Rc8 {[%clk 0:02:28]} 34... Rxb2 {[%clk
0:03:11.2]} 35. c6 {[%clk 0:02:27.9]} 35... Rc2 {[%clk 0:03:09.5]} 36. c7 {[%clk
0:02:26.1]} 36... b3 {[%clk 0:03:06.6]} 37. Rb8 {[%clk 0:02:24.1]} 37... Rxc7
{[%clk 0:02:46.6]} 38. Rxb3 {[%clk 0:02:24]} 38... Rc4 {[%clk 0:02:42.7]} 0-1

[Event "Live Chess"]
[Site "Chess.com"]
[Date "2023.05.21"]
[Round "-"]
[White "chessfiction"]
[Black "KeithArkell"]
[Result "0-1"]
[WhiteElo "2354"]
[BlackElo "2577"]
[TimeControl "300"]
[EndTime "19:43:24 PDT"]
[Termination "KeithArkell won by resignation"]

1. e4 {[%clk 0:04:58.5]} 1... c6 {[%clk 0:04:49]} 2. d4 {[%clk 0:04:57]} 2... d5
{[%clk 0:04:48.2]} 3. Nc3 {[%clk 0:04:55.3]} 3... dxe4 {[%clk 0:04:46.9]} 4. f3
{[%clk 0:04:54.9]} 4... e3 {[%clk 0:04:45.4]} 5. Bxe3 {[%clk 0:04:53.3]} 5...
Nd7 {[%clk 0:04:44.6]} 6. Qd2 {[%clk 0:04:52.8]} 6... Ngf6 {[%clk 0:04:43.8]} 7.
O-O-O {[%clk 0:04:52.7]} 7... Nb6 {[%clk 0:04:42.8]} 8. g4 {[%clk 0:04:43]} 8...
Be6 {[%clk 0:04:41.4]} 9. Bg2 {[%clk 0:04:39.9]} 9... Nc4 {[%clk 0:04:39.2]} 10.
Qd3 {[%clk 0:04:36.5]} 10... Nxe3 {[%clk 0:04:32.9]} 11. Qxe3 {[%clk 0:04:35.5]}
11... Nd5 {[%clk 0:04:31]} 12. Nxd5 {[%clk 0:04:34.3]} 12... Bxd5 {[%clk
0:04:29.5]} 13. Ne2 {[%clk 0:04:32.4]} 13... e6 {[%clk 0:04:28]} 14. Nc3 {[%clk
0:04:30.7]} 14... Qa5 {[%clk 0:04:24.5]} 15. a3 {[%clk 0:04:28.2]} 15... Be7
{[%clk 0:04:19.2]} 16. Rd2 {[%clk 0:04:22.1]} 16... h6 {[%clk 0:04:07.6]} 17.
Nxd5 {[%clk 0:04:14.6]} 17... cxd5 {[%clk 0:04:04.7]} 18. Kb1 {[%clk 0:04:13.7]}
18... Qc7 {[%clk 0:04:02.2]} 19. f4 {[%clk 0:04:08.9]} 19... O-O-O {[%clk
0:04:00.2]} 20. Rd3 {[%clk 0:04:07]} 20... Kb8 {[%clk 0:03:59.1]} 21. Rb3 {[%clk
0:04:05.2]} 21... h5 {[%clk 0:03:50.9]} 22. g5 {[%clk 0:03:51]} 22... g6 {[%clk
0:03:49.9]} 23. Rd1 {[%clk 0:03:48.2]} 23... Bd6 {[%clk 0:03:48]} 24. Rf1 {[%clk
0:03:46.6]} 24... Rc8 {[%clk 0:03:46.3]} 25. h4 {[%clk 0:03:43.6]} 25... Qxc2+
{[%clk 0:03:44.5]} 26. Ka2 {[%clk 0:03:41.9]} 26... Qxg2 {[%clk 0:03:43.3]} 0-1

[Event "Live Chess"]
[Site "Chess.com"]
[Date "2023.05.21"]
[Round "-"]
[White "xx_blindpuffin_xx"]
[Black "ViktorTheCoolBoy"]
[Result "0-1"]
[WhiteElo "2183"]
[BlackElo "2498"]
[TimeControl "300"]
[EndTime "19:43:35 PDT"]
[Termination "ViktorTheCoolBoy won by checkmate"]

1. d4 {[%clk 0:04:56.6]} 1... Nf6 {[%clk 0:04:58.6]} 2. Bf4 {[%clk 0:04:55.6]}
2... g6 {[%clk 0:04:56.7]} 3. e3 {[%clk 0:04:55.1]} 3... Bg7 {[%clk 0:04:55.9]}
4. Nf3 {[%clk 0:04:54.7]} 4... O-O {[%clk 0:04:55]} 5. h3 {[%clk 0:04:54.3]}
5... d6 {[%clk 0:04:54.4]} 6. Be2 {[%clk 0:04:53.8]} 6... Nfd7 {[%clk 0:04:47]}
7. O-O {[%clk 0:04:52.2]} 7... e5 {[%clk 0:04:45.6]} 8. Bh2 {[%clk 0:04:51.2]}
8... Nc6 {[%clk 0:04:43.9]} 9. c4 {[%clk 0:04:49]} 9... f5 {[%clk 0:04:38.3]}
10. Nc3 {[%clk 0:04:45.1]} 10... g5 {[%clk 0:04:34.1]} 11. Rb1 {[%clk
0:04:25.3]} 11... g4 {[%clk 0:04:28.8]} 12. hxg4 {[%clk 0:04:24]} 12... fxg4
{[%clk 0:04:27.7]} 13. Ne1 {[%clk 0:04:21.4]} 13... h5 {[%clk 0:04:26.2]} 14.
dxe5 {[%clk 0:04:19.6]} 14... Ndxe5 {[%clk 0:04:24]} 15. Nd5 {[%clk 0:04:14.2]}
15... Bf5 {[%clk 0:04:21.8]} 16. Rc1 {[%clk 0:04:10]} 16... Rf7 {[%clk
0:04:07.9]} 17. b4 {[%clk 0:04:03.9]} 17... h4 {[%clk 0:03:56]} 18. b5 {[%clk
0:03:34.8]} 18... Na5 {[%clk 0:03:53.8]} 19. Qd2 {[%clk 0:03:24.4]} 19... b6
{[%clk 0:03:51.4]} 20. Bf4 {[%clk 0:03:10.8]} 20... Nb7 {[%clk 0:03:47.8]} 21.
Nd3 {[%clk 0:03:08]} 21... Ng6 {[%clk 0:03:35]} 22. Rfe1 {[%clk 0:02:43.4]}
22... Qd7 {[%clk 0:03:31]} 23. Bg5 {[%clk 0:02:32.7]} 23... Be4 {[%clk 0:03:26]}
24. N5f4 {[%clk 0:02:04.7]} 24... Qf5 {[%clk 0:03:21.4]} 25. Nxg6 {[%clk
0:02:02.9]} 25... Qxg5 {[%clk 0:03:19.3]} 26. Ngf4 {[%clk 0:01:58.2]} 26... h3
{[%clk 0:03:15.7]} 27. gxh3 {[%clk 0:01:46.8]} 27... g3 {[%clk 0:03:05.7]} 28.
f3 {[%clk 0:01:24.9]} 28... Bf5 {[%clk 0:03:00.9]} 29. Kg2 {[%clk 0:01:23.2]}
29... Re8 {[%clk 0:02:55.3]} 30. e4 {[%clk 0:01:21.9]} 30... Bd7 {[%clk
0:02:53]} 31. Rcd1 {[%clk 0:01:18]} 31... Bh6 {[%clk 0:02:50.8]} 32. Qc1 {[%clk
0:01:03.4]} 32... Nc5 {[%clk 0:02:41.8]} 33. Nd5 {[%clk 0:00:57.2]} 33... Qh4
{[%clk 0:02:34.4]} 34. Rh1 {[%clk 0:00:46]} 34... Bxc1 {[%clk 0:02:31.9]} 35.
Nxc1 {[%clk 0:00:45.9]} 35... Nxe4 {[%clk 0:02:25.3]} 36. fxe4 {[%clk
0:00:44.5]} 36... Rf2+ {[%clk 0:02:23.7]} 37. Kg1 {[%clk 0:00:42.4]} 37... Qxe4
{[%clk 0:02:21.7]} 38. Bf1 {[%clk 0:00:32.8]} 38... Qf3 {[%clk 0:02:13.6]} 39.
Rd3 {[%clk 0:00:30.2]} 39... Rxf1# {[%clk 0:02:11.7]} 0-1